fUST/lending_fUST_20240809
["ID","MTS","AMOUNT","RATE_DAILY","PERIOD"]
[334474557,1723145434012,-294.13159854,0.0002,2]
[334474558,1723145434022,-372.70044747,0.00020999,2]
[334474559,1723145434031,-164.610023,0.00021372,2]
[334474560,1723145434040,-187.19476,0.00021905,2]
[334474561,1723145434050,-160.33883,0.00022429,2]
[334474562,1723145434059,-191.72259366,0.00023527,2]
[334474563,1723145434069,-300.0,0.00023999,2]
[334474564,1723145434078,-3412.02536193,0.00024,30]
[334474565,1723145434101,-938.89919703,0.00024,30]
[334474566,1723145434118,-300.0,0.00024999,2]
[334474567,1723145434134,-5864.03466338,0.00025,30]
[334474568,1723145434147,-2517.768071,0.00025,30]
[334474599,1723145438435,-405.85748006,0.00019177,2]
[334474601,1723145438444,-489.33418964,0.00025,30]
[334474603,1723145438456,-1457.65171937,0.00025,30]
[334474661,1723145440435,-1907.84433138,0.00025,30]
[334474752,1723145563034,273.37336231,9.9e-05,2]
[334474753,1723145578921,273.37336231,9.9e-05,2]
[334474754,1723145594457,273.37336231,9.9e-05,2]
[334474757,1723145608911,161.259935,0.00014247,2]
[334474758,1723145609761,273.37336231,9.9e-05,2]
[334474760,1723145621756,173.44350557,0.00012,2]
[334474761,1723145624227,2164.007045,0.00012,2]
[334474762,1723145625476,201.42607315,0.00012,2]
[334474763,1723145626098,273.37336231,9.9e-05,2]
[334474765,1723145641376,273.37336231,9.9e-05,2]
[334474766,1723145656547,273.37336231,9.9e-05,2]
[334474767,1723145671730,273.37336231,9.9e-05,2]
[334474771,1723145688474,273.37336231,9.9e-05,2]
[334474772,1723145703616,273.37336231,9.9e-05,2]
[334474773,1723145719413,273.37336231,9.9e-05,2]
[334474774,1723145735303,273.37336231,9.9e-05,2]
[334474775,1723145735352,172.72504466,0.00012,2]
[334474776,1723145750987,273.37336231,9.9e-05,2]
[334474777,1723145767548,220.36622198,9.9e-05,2]
[334474779,1723145943350,766.39475356,0.00012,2]
[334474780,1723146173318,164.465259,0.00014247,2]
[334474784,1723146550146,-182.34851479,0.00016532,2]
[334474869,1723146632697,-296.70888819,0.00017019,2]
[334474871,1723146632707,-951.69950854,0.00018696,2]
[334474873,1723146632717,-154.91162192,0.00018799,2]
[334474875,1723146632728,-862.42234122,0.00019451,2]
[334474877,1723146632737,-309.33495762,0.00019477,2]
[334474879,1723146632747,-1533.42482603,0.00019547,2]
[334474881,1723146632757,-300.0,0.00019999,2]
[334474883,1723146632767,-300.0,0.00019999,2]
[334474885,1723146632776,-282.7920315,0.00019999,2]
[334474887,1723146632785,-4248.92349617,0.0002,2]
[334474889,1723146632795,-837.11590473,0.0002,2]
[334474891,1723146632805,-504.80821134,0.0002028,2]
[334474893,1723146632815,-163.860217,0.00021273,2]
[334474895,1723146632824,-1201.9485789,0.0002177,2]
[334474897,1723146632834,-420.0,0.00021777,2]
[334474899,1723146632843,-155.3772633,0.00021805,2]
[334474901,1723146632853,-187.1947612,0.00021813,2]
[334474903,1723146632862,-632.89885063,0.00021916,2]
[334474905,1723146632872,-420.0,0.00021999,2]
[334474906,1723146632882,-134.84484401,0.00022429,2]
[334474908,1723146632895,-26.41509099,0.00022429,2]
[334474910,1723146632906,-587.0,0.00023712,2]
[334474912,1723146632918,-4350.92455896,0.00024,30]
[334474913,1723146632930,-4048.58608607,0.00024073,2]
[334474914,1723146632940,-153.0,0.00024137,2]
[334474915,1723146632949,-190.0,0.00024199,2]
[334474916,1723146632959,-4048.58608607,0.00024276,2]
[334474917,1723146632969,-150.0,0.00024429,2]
[334474918,1723146632978,-2607.42141298,0.00024566,2]
[334474948,1723146638526,-1441.16467309,0.00024566,2]
[334474949,1723146638536,-4233.04995773,0.00024583,2]
[334474950,1723146638546,-227.66255963,0.00024682,2]
[334474951,1723146638555,-4048.58608607,0.00024683,2]
[334474952,1723146638566,-150.0,0.00024712,2]
[334474953,1723146638575,-191.72259366,0.000249,2]
[334474954,1723146638584,-9531.32,0.0002499,3]
[334474955,1723146638593,-28738.61645582,0.00025,11]
[334474956,1723146638604,-10964.79655861,0.00025,30]
[334474957,1723146638613,-12403.13829252,0.00025,2]
[334474958,1723146638622,-2117.18584628,0.00025,2]
[334474959,1723146638631,-4198.11860671,0.00025,2]
[334474960,1723146638640,-1626.61800287,0.00025,2]
[334474961,1723146638649,-205.9722261,0.0002511,2]
[334474962,1723146638659,-410.4589719,0.00025256,2]
[334474963,1723146638670,-207.1717265,0.00025342,2]
[334474964,1723146638679,-207.1717265,0.00025342,2]
[334474965,1723146638690,-207.1717265,0.00025342,2]
[334474966,1723146638699,-153.0,0.000256,2]
[334474967,1723146638710,-1100.0,0.00026,30]
[334474968,1723146638719,-200.0,0.00026027,2]
[334474969,1723146638731,-150.112233,0.000261,10]
[334474970,1723146638740,-11437.59,0.00026103,3]
[334474971,1723146638751,-28930.2403294,0.00026113,3]
[334474972,1723146638762,-4233.04995766,0.000262,2]
[334474973,1723146638774,-402.58073778,0.00026302,2]
[334474974,1723146638783,-150.112233,0.000264,5]
[334474975,1723146638792,-1363.91466198,0.00026408,2]
[334474976,1723146638801,-60381.87906581,0.00026417,3]
[334474977,1723146638811,-881.97401853,0.00026453,2]
[334474978,1723146638822,-7458.94652043,0.0002649,2]
[334474979,1723146638832,-151.0,0.00026496,7]
[334474980,1723146638841,-151.0,0.00026496,7]
[334474981,1723146638850,-22239.66853473,0.00026496,11]
[334474982,1723146638861,-28930.2403294,0.00026497,3]
[334474983,1723146638871,-150.112233,0.000265,5]
[334474984,1723146638881,-532.55388305,0.00026506,2]
[334474985,1723146638891,-500.0,0.00026506,2]
[334474986,1723146638901,-500.0,0.00026506,2]
[334474987,1723146638910,-500.0,0.00026506,2]
[334474988,1723146638920,-500.0,0.00026506,2]
[334474989,1723146638933,-198.51859129,0.00026506,2]
[334474990,1723146638942,-500.0,0.00026506,2]
[334474991,1723146638951,-186.95423508,0.00026506,2]
[334474992,1723146638960,-500.0,0.00026506,2]
[334474993,1723146638970,-500.0,0.00026506,2]
[334474994,1723146638980,-500.0,0.00026506,2]
[334474995,1723146638989,-500.0,0.00026506,2]
[334474996,1723146638999,-500.0,0.00026506,2]
[334474997,1723146639009,-500.0,0.00026506,2]
[334474998,1723146639018,-500.0,0.00026506,2]
[334474999,1723146639027,-500.0,0.00026506,2]
[334475000,1723146639037,-500.0,0.00026506,2]
[334475001,1723146639046,-500.0,0.00026506,2]
[334475002,1723146639056,-500.0,0.00026506,2]
[334475003,1723146639067,-500.0,0.00026506,2]
[334475004,1723146639077,-500.0,0.00026506,2]
[334475005,1723146639086,-500.0,0.00026506,2]
[334475006,1723146639095,-500.0,0.00026506,2]
[334475007,1723146639104,-400.0,0.00026506,2]
[334475008,1723146639114,-500.0,0.00026506,2]
[334475009,1723146639123,-500.0,0.00026506,2]
[334475010,1723146639132,-500.0,0.00026506,2]
[334475011,1723146639141,-500.0,0.00026506,2]
[334475012,1723146639151,-500.0,0.00026506,2]
[334475013,1723146639159,-500.0,0.00026506,2]
[334475014,1723146639168,-500.0,0.00026506,2]
[334475015,1723146639178,-500.0,0.00026506,2]
[334475016,1723146639187,-500.0,0.00026506,2]
[334475017,1723146639197,-500.0,0.00026506,2]
[334475018,1723146639206,-500.0,0.00026506,2]
[334475019,1723146639216,-607.57604974,0.00026506,2]
[334475020,1723146639225,-500.0,0.00026506,2]
[334475021,1723146639235,-515.83752932,0.00026506,2]
[334475022,1723146639244,-500.0,0.00026506,2]
[334475023,1723146639254,-500.0,0.00026506,2]
[334475024,1723146639265,-500.0,0.00026506,2]
[334475025,1723146639275,-500.0,0.00026506,2]
[334475026,1723146639284,-500.0,0.00026506,2]
[334475027,1723146639294,-500.0,0.00026506,2]
[334475028,1723146639303,-250.0,0.00026506,2]
[334475029,1723146639315,-151.77323,0.00026506,7]
[334475030,1723146639327,-151.77323,0.00026506,7]
[334475031,1723146639337,-151.0,0.00026506,7]
[334475032,1723146639346,-151.661857,0.00026506,7]
[334475033,1723146639355,-151.0,0.00026506,7]
[334475034,1723146639365,-403.856738,0.00026506,7]
[334475035,1723146639374,-151.0,0.00026506,7]
[334475036,1723146639384,-403.856738,0.00026506,7]
[334475037,1723146639393,-86790.7209883,0.00026507,3]
[334475038,1723146639402,-151.77323,0.00026507,7]
[334475039,1723146639412,-151.77323,0.00026507,7]
[334475040,1723146639422,-249.093938,0.00026507,7]
[334475041,1723146639431,-151.0,0.00026507,7]
[334475042,1723146639440,-403.856738,0.00026507,7]
[334475043,1723146639450,-151.0,0.00026507,7]
[334475044,1723146639460,-403.856738,0.00026507,7]
[334475045,1723146639469,-151.0,0.00026507,7]
[334475046,1723146639479,-151.0,0.00026507,7]
[334475047,1723146639488,-151.0,0.00026516,7]
[334475048,1723146639498,-151.0,0.00026516,7]
[334475049,1723146639508,-151.0,0.00026516,2]
[334475050,1723146639518,-377.875526,0.00026516,7]
[334475051,1723146639528,-377.875526,0.00026516,7]
[334475052,1723146639538,-601.866422,0.00026516,7]
[334475053,1723146639547,-601.866422,0.00026516,7]
[334475054,1723146639557,-490.352235,0.00026516,7]
[334475055,1723146639576,-490.352235,0.00026516,7]
[334475056,1723146639585,-151.0,0.00026516,7]
[334475057,1723146639595,-118446.78401005,0.00026517,2]
[334475058,1723146639606,-151.0,0.00026517,7]
[334475059,1723146639616,-151.0,0.00026517,7]
[334475060,1723146639626,-151.0,0.00026517,7]
[334475061,1723146639636,-151.0,0.00026517,7]
[334475062,1723146639646,-151.0,0.00026517,7]
[334475063,1723146639656,-151.445866,0.00026517,7]
[334475064,1723146639666,-151.0,0.00026517,7]
[334475065,1723146639676,-164.016361,0.00026517,7]
[334475066,1723146639686,-164.016361,0.00026517,7]
[334475067,1723146639695,-151.0,0.00026517,7]
[334475068,1723146639705,-151.0,0.00026517,7]
[334475069,1723146639715,-151.0,0.00026517,7]
[334475070,1723146639723,-173.109334,0.00026517,2]
[334475071,1723146639734,-151.0,0.00026517,7]
[334475072,1723146639743,-377.875526,0.00026517,7]
[334475073,1723146639753,-377.875526,0.00026517,7]
[334475074,1723146639763,-151.0,0.00026517,7]
[334475075,1723146639773,-151.0,0.00026517,7]
[334475076,1723146639782,-181.76099,0.00026517,7]
[334475077,1723146639792,-181.76099,0.00026517,7]
[334475078,1723146639802,-151.0,0.00026517,7]
[334475079,1723146639811,-151.0,0.00026517,7]
[334475080,1723146639825,-151.0,0.00026517,7]
[334475081,1723146639835,-151.0,0.00026517,7]
[334475082,1723146639845,-159.716445,0.00026517,7]
[334475083,1723146639854,-601.866422,0.00026517,7]
[334475084,1723146639864,-159.716445,0.00026517,7]
[334475085,1723146639874,-601.866422,0.00026517,7]
[334475086,1723146639883,-490.352235,0.00026517,7]
[334475087,1723146639893,-490.352235,0.00026517,7]
[334475088,1723146639902,-151.532427,0.00026517,7]
[334475089,1723146639911,-151.77323,0.00026517,7]
[334475091,1723146639925,-151.77323,0.00026517,7]
[334475092,1723146639934,-151.0,0.00026517,7]
[334475094,1723146639943,-403.856738,0.00026517,7]
[334475095,1723146639952,-151.0,0.00026517,7]
[334475097,1723146639963,-403.856738,0.00026517,7]
[334475098,1723146639973,-151.0,0.00026517,7]
[334475100,1723146639982,-151.0,0.00026517,7]
[334475101,1723146639991,-153.0,0.0002657,2]
[334475102,1723146640003,-153.0,0.0002657,2]
[334475103,1723146640013,-153.0,0.0002657,2]
[334475104,1723146640023,-153.0,0.0002657,2]
[334475105,1723146640033,-153.0,0.0002657,2]
[334475106,1723146640042,-153.0,0.0002657,2]
[334475107,1723146640051,-153.0,0.0002657,2]
[334475108,1723146640061,-1000.0,0.00026675,2]
[334475109,1723146640073,-1000.0,0.00026692,2]
[334475110,1723146640083,-1000.0,0.00026697,2]
[334475111,1723146640092,-530.73,0.00026712,2]
[334475112,1723146640103,-1000.0,0.00026739,2]
[334475113,1723146640113,-1000.0,0.00026769,2]
[334475114,1723146640123,-150.112233,0.000268,8]
[334475115,1723146640132,-1000.0,0.00026808,2]
[334475116,1723146640141,-294.4971025,0.0002681,2]
[334475117,1723146640150,-294.4971025,0.0002681,2]
[334475119,1723146640160,-294.4971025,0.0002681,2]
[334475120,1723146640169,-1000.0,0.0002681,2]
[334475121,1723146640178,-1312.09873751,0.00026849,15]
[334475122,1723146640188,-5000.0,0.0002685,7]
[334475123,1723146640196,-1000.0,0.00026869,2]
[334475124,1723146640205,-2000.0,0.0002689,2]
[334475125,1723146640214,-2785.9627507,0.000269,2]
[334475126,1723146640224,-1005.013645,0.000269,2]
[334475127,1723146640234,-150.01,0.00026934,2]
[334475128,1723146640244,-2993.00758584,0.00026934,2]
[334475129,1723146640254,-151.0,0.00026934,7]
[334475130,1723146640263,-151.0,0.00026934,7]
[334475131,1723146640272,-181.76099,0.00026934,7]
[334475132,1723146640282,-181.76099,0.00026934,7]
[334475133,1723146640291,-151.0,0.00026934,7]
[334475134,1723146640301,-151.0,0.00026934,7]
[334475135,1723146640312,-159.716445,0.00026934,7]
[334475136,1723146640324,-601.866422,0.00026934,7]
[334475137,1723146640335,-159.716445,0.00026934,7]
[334475138,1723146640347,-601.866422,0.00026934,7]
[334475139,1723146640356,-490.352235,0.00026934,7]
[334475140,1723146640366,-490.352235,0.00026934,7]
[334475141,1723146640376,-151.0,0.00026979,7]
[334475142,1723146640386,-151.0,0.00026979,7]
[334475143,1723146640395,-151.0,0.00026979,7]
[334475144,1723146640405,-151.0,0.00026979,7]
[334475145,1723146640415,-151.0,0.00026979,2]
[334475146,1723146640425,-151.0,0.00026979,7]
[334475147,1723146640436,-151.0,0.00026979,7]
[334475148,1723146640447,-152.329468,0.00026979,7]
[334475149,1723146640457,-151.0,0.00026979,7]
[334475150,1723146640467,-151.0,0.00026979,7]
[334475151,1723146640476,-151.0,0.00026979,7]
[334475152,1723146640487,-151.0,0.00026979,7]
[334475153,1723146640498,-164.016361,0.00026979,7]
[334475154,1723146640508,-164.016361,0.00026979,7]
[334475155,1723146640523,-151.0,0.00026979,7]
[334475156,1723146640533,-151.0,0.00026979,7]
[334475157,1723146640544,-151.0,0.00026979,7]
[334475159,1723146640553,-377.875526,0.00026979,7]
[334475161,1723146640564,-377.875526,0.00026979,7]
[334475162,1723146640574,-151.77323,0.0002698,7]
[334475164,1723146640584,-151.77323,0.0002698,7]
[334475166,1723146640595,-151.0,0.0002698,7]
[334475168,1723146640605,-403.856738,0.0002698,7]
[334475170,1723146640616,-151.0,0.0002698,7]
[334475172,1723146640626,-403.856738,0.0002698,7]
[334475175,1723146640639,-151.0,0.0002698,7]
[334475177,1723146640649,-193.701834,0.0002698,7]
[334475179,1723146640660,-15312.10493032,0.0002698,3]
[334475216,1723146641006,-13618.13539908,0.0002698,3]
[334475218,1723146641016,-151.0,0.00026988,7]
[334475220,1723146641026,-151.0,0.00026988,7]
[334475222,1723146641035,-151.0,0.00026988,7]
[334475224,1723146641044,-151.0,0.0002699,7]
[334475226,1723146641054,-151.0,0.0002699,7]
[334475228,1723146641065,-151.0,0.0002699,7]
[334475230,1723146641074,-151.0,0.0002699,7]
[334475232,1723146641086,-151.0,0.0002699,2]
[334475234,1723146641095,-151.0,0.0002699,7]
[334475236,1723146641105,-151.0,0.0002699,7]
[334475238,1723146641114,-151.0,0.0002699,7]
[334475240,1723146641123,-151.0,0.0002699,7]
[334475242,1723146641132,-151.0,0.0002699,7]
[334475244,1723146641141,-151.0,0.0002699,7]
[334475245,1723146641151,-151.939087,0.0002699,7]
[334475248,1723146641161,-164.016361,0.0002699,7]
[334475250,1723146641170,-164.016361,0.0002699,7]
[334475252,1723146641180,-151.0,0.0002699,7]
[334475254,1723146641189,-151.0,0.0002699,7]
[334475256,1723146641198,-377.875526,0.0002699,7]
[334475258,1723146641208,-377.875526,0.0002699,7]
[334475259,1723146641217,-151.0,0.0002699,7]
[334475261,1723146641226,-151.0,0.0002699,7]
[334475263,1723146641236,-181.76099,0.0002699,7]
[334475265,1723146641245,-181.76099,0.0002699,7]
[334475267,1723146641255,-151.0,0.0002699,7]
[334475269,1723146641265,-4260.51302422,0.0002699,3]
[334475291,1723146641464,-8430.01674593,0.0002699,3]
[334475293,1723146641476,-728.23,0.0002699,3]
[334475327,1723146643535,-4.69650153,0.00026496,7]
[334475351,1723146647312,-372.70044747,0.00020038,2]
[334475352,1723146647325,-565.19871447,0.00026496,7]
[334475353,1723146647335,-569.895216,0.00026496,7]
[334475354,1723146647344,-569.895216,0.00026507,7]
[334475355,1723146647353,-569.895216,0.00026507,7]
[334475356,1723146647364,-569.895216,0.00026517,7]
[334475357,1723146647374,-569.895216,0.00026517,7]
[334475358,1723146647384,-569.895216,0.0002698,7]
[334475359,1723146647393,-569.895216,0.0002698,7]
[334475360,1723146647403,-39329.35703523,0.0002699,3]
[334475361,1723146662570,161.198528,0.00014247,2]
[334475374,1723147108807,165.275861,0.00014247,2]
[334475375,1723147291532,1630.23174338,0.00014247,2]
[334475378,1723147478227,405.0185737,0.00014247,2]
[334475379,1723147580285,161.474044,0.00014247,2]
[334475396,1723147745192,-182.34851479,0.00016309,2]
[334475451,1723147832744,-151.0,0.000162,2]
[334475453,1723147832754,-370.37936412,0.00016309,2]
[334475455,1723147832763,-120.71065065,0.00018899,4]
[334475459,1723147832795,-338.98770656,0.00018899,4]
[334475461,1723147832804,-123.24029344,0.00018921,2]
[334475548,1723147838821,-33.39863488,0.00018921,2]
[334475550,1723147838830,-4635.73522752,0.00019102,2]
[334475552,1723147838840,-1019.87227738,0.00019768,2]
[334475553,1723147838849,-191.72259366,0.00019899,2]
[334475555,1723147838859,-294.13159854,0.0002,2]
[334475557,1723147838869,-164.610023,0.00021104,2]
[334475559,1723147838878,-187.19476,0.00021172,2]
[334475561,1723147838887,-161.474044,0.00023014,2]
[334475563,1723147838897,-300.0,0.00023999,2]
[334475565,1723147838906,-300.0,0.00023999,2]
[334475567,1723147838916,-4350.92455896,0.00024,30]
[334475569,1723147838925,-3174.78746828,0.000249,2]
[334475571,1723147838937,-23201.42953338,0.00025,30]
[334475573,1723147838948,-500.0,0.00025,2]
[334475575,1723147838958,-288.3473829,0.00026011,2]
[334475577,1723147838970,-267.747436,0.00026011,2]
[334475579,1723147838990,-307.6091374,0.00026011,2]
[334475581,1723147839000,-267.747436,0.00026011,2]
[334475582,1723147839009,-267.747436,0.00026011,2]
[334475584,1723147839019,-153.0,0.00026011,2]
[334475586,1723147839029,-401.9397545,0.00026011,2]
[334475588,1723147839039,-153.0,0.00026011,2]
[334475589,1723147839048,-267.747436,0.00026011,2]
[334475590,1723147839057,-267.747436,0.00026011,2]
[334475591,1723147839067,-200.0,0.00026027,2]
[334475592,1723147839076,-620.95181226,0.00026121,2]
[334475593,1723147839087,-3174.78746824,0.00026143,2]
[334475594,1723147839097,-1412.0,0.00026145,2]
[334475595,1723147839107,-207.1717265,0.00026438,2]
[334475596,1723147839117,-153.0,0.00026538,2]
[334475597,1723147839128,-153.0,0.00026538,2]
[334475598,1723147839138,-153.0,0.00026538,2]
[334475599,1723147839147,-153.0,0.00026538,2]
[334475600,1723147839156,-153.0,0.00026538,2]
[334475601,1723147839166,-153.0,0.00026538,2]
[334475602,1723147839175,-153.0,0.00026538,2]
[334475603,1723147839185,-153.0,0.00026538,2]
[334475604,1723147839197,-153.0,0.00026538,2]
[334475605,1723147839207,-153.0,0.00026538,2]
[334475606,1723147839217,-402.58073778,0.00026559,2]
[334475607,1723147839230,-4669.90665833,0.00026587,2]
[334475608,1723147839239,-1363.91466198,0.00026599,2]
[334475609,1723147839250,-150.112234,0.000266,6]
[334475610,1723147839259,-309.58458352,0.00026604,2]
[334475611,1723147839269,-7120.49,0.00026644,3]
[334475612,1723147839279,-6756.02,0.00026644,3]
[334475613,1723147839290,-59596.5764744,0.00026654,3]
[334475614,1723147839304,-11119.83426737,0.00026664,11]
[334475615,1723147839313,-38675.32379624,0.00026664,2]
[334475641,1723147842524,-731.5,0.00026644,3]
[334475680,1723148085471,165.883814,0.00014247,2]
[334475684,1723148190746,729.4,0.00014247,2]
[334475691,1723148621082,161.940826,0.00014247,2]
[334475693,1723148756659,269.54909522,0.00016532,7]
[334475696,1723148771354,-154.84363402,0.00015851,2]
[334475697,1723148771377,-154.79103211,0.00015952,2]
[334475698,1723148771402,-727.33991579,0.00015952,2]
[334475699,1723148771425,-245.45777017,0.00015954,2]
[334475700,1723148872755,-197.85957654,0.00015954,2]
[334475701,1723148900065,395.72240672,0.000123,2]
[334475702,1723148907019,-664.2961566,0.00015954,2]
[334475703,1723148908799,273.37336231,9.9e-05,2]
[334475707,1723148935522,-808.5209824,0.00015954,2]
[334475714,1723148972145,-182.30120802,0.00016038,2]
[334475715,1723148972168,-196.44477921,0.00016038,2]
[334475716,1723148973626,-1815.75967709,0.00015954,2]
[334475802,1723149037900,-248.0,0.00016037,2]
[334475804,1723149037909,-5238.95624179,0.00016038,2]
[334475806,1723149037919,-156.29506882,0.00016038,2]
[334475808,1723149037928,-1500.0,0.00016038,2]
[334475831,1723149038103,-168.694212,0.00016082,2]
[334475832,1723149038114,-1020.02822822,0.00016095,2]
[334475833,1723149038126,-952.22238647,0.00016095,2]
[334475834,1723149038136,-1109.36970541,0.00016095,2]
[334475835,1723149038146,-1020.02822822,0.00016095,2]
[334475836,1723149038156,-194.60736977,0.00016095,2]
[334475837,1723149038166,-1109.36970541,0.00016095,2]
[334475838,1723149038175,-154.77557542,0.0001611,2]
[334475839,1723149038187,-249.2121176,0.0001611,2]
[334475840,1723149038197,-205.1880395,0.0001611,2]
[334475841,1723149038207,-320.19249005,0.0001611,2]
[334475842,1723149038216,-287.82937614,0.0001611,2]
[334475843,1723149038227,-434.51702701,0.00016159,2]
[334475844,1723149038237,-305.68460712,0.00016159,2]
[334475845,1723149038249,-174.91997391,0.00016159,2]
[334475847,1723149038261,-168.694212,0.00016292,2]
[334475849,1723149038271,-168.694212,0.00016501,2]
[334475851,1723149038280,-168.694212,0.00016711,2]
[334475853,1723149038290,-168.694212,0.0001692,2]
[334475855,1723149038299,-154.87462466,0.00017019,2]
[334475858,1723149038311,-1129.98,0.00017256,2]
[334475860,1723149038320,-250.3081391,0.00017269,2]
[334475862,1723149038330,-269.54909522,0.00019153,7]
[334475864,1723149038341,-356.53097519,0.00019167,2]
[334475866,1723149038351,-155.00346468,0.00019256,2]
[334475868,1723149038361,-520.57755902,0.00019256,2]
[334475870,1723149038370,-284.01665541,0.00019368,2]
[334475872,1723149038380,-24890.0,0.00019369,2]
[334475874,1723149038389,-4743.55462994,0.00019387,2]
[334475876,1723149038399,-163.860217,0.00019487,2]
[334475878,1723149038409,-279.68832637,0.00019547,2]
[334475880,1723149038418,-191.72259366,0.0001988,2]
[334475882,1723149038427,-156.42647328,0.0002,2]
[334475884,1723149038437,-435.0,0.0002,2]
[334475886,1723149038450,-1444.35779383,0.0002,2]
[334475887,1723149038460,-294.2333485,0.0002,2]
[334475888,1723149038470,-429.65649487,0.0002,2]
[334475889,1723149038480,-154.94664795,0.0002,2]
[334475890,1723149038489,-151.47142851,0.0002,2]
[334475891,1723149038498,-387.383943,0.00020678,2]
[334475892,1723149038509,-387.383943,0.00020684,2]
[334475893,1723149038518,-387.383943,0.00020689,2]
[334475894,1723149038528,-387.383943,0.00020694,2]
[334475895,1723149038537,-387.383943,0.000207,2]
[334475896,1723149038546,-387.383943,0.00020705,2]
[334475897,1723149038555,-387.383943,0.00020711,2]
[334475898,1723149038564,-387.383943,0.00020716,2]
[334475899,1723149038574,-387.383943,0.00020722,2]
[334475900,1723149038583,-387.383943,0.00020727,2]
[334475901,1723149038592,-387.383943,0.00020733,2]
[334475902,1723149038602,-387.383943,0.00020738,2]
[334475903,1723149038611,-387.383943,0.00020744,2]
[334475904,1723149038620,-387.383943,0.00020749,2]
[334475905,1723149038629,-387.383943,0.00020754,2]
[334475906,1723149038639,-387.383943,0.0002076,2]
[334475907,1723149038648,-387.383943,0.00020765,2]
[334475908,1723149038658,-387.383943,0.00020771,2]
[334475909,1723149038667,-387.383943,0.00020776,2]
[334475910,1723149038679,-387.383943,0.00020782,2]
[334475911,1723149038688,-594.20316522,0.00021,2]
[334475912,1723149038697,-418.30198389,0.00021048,2]
[334475913,1723149038707,-227.66255963,0.00021356,2]
[334475914,1723149038717,-4743.55462992,0.00021357,2]
[334475915,1723149038726,-154.77557542,0.00021805,2]
[334475916,1723149038736,-160.64700877,0.00022,2]
[334475917,1723149038745,-302.60665372,0.00022,2]
[334475918,1723149038757,-171.0,0.00022,2]
[334475919,1723149038767,-302.60665372,0.0002222,2]
[334475920,1723149038776,-163.860217,0.00022377,2]
[334475921,1723149038785,-161.940826,0.00022429,2]
[334475922,1723149038794,-302.60665372,0.0002244,2]
[334475923,1723149038804,-301.1271993,0.0002266,2]
[334475924,1723149038813,-172.17444394,0.00023,2]
[334475925,1723149038823,-533.965833,0.00023,2]
[334475926,1723149038832,-171.0,0.00023014,2]
[334475927,1723149038841,-4743.55462992,0.00023328,2]
[334475928,1723149038850,-5169.85729746,0.00023509,2]
[334475929,1723149038859,-5169.85729746,0.00023637,2]
[334475930,1723149038869,-5169.85729746,0.00023843,2]
[334475931,1723149038878,-4350.92455896,0.00024,30]
[334475932,1723149038889,-15992.0726453,0.00024247,2]
[334475933,1723149038898,-241.13,0.00024337,3]
[334475934,1723149038907,-723.44,0.00024337,3]
[334475935,1723149038916,-5169.85729746,0.00024339,2]
[334475936,1723149038926,-33679.7624961,0.00024347,3]
[334475937,1723149038935,-482.27,0.00024347,3]
[334475938,1723149038945,-150.112234,0.000244,3]
[334475939,1723149038954,-15992.07264526,0.0002441,2]
[334475940,1723149038963,-5169.85729746,0.00024551,2]
[334475941,1723149038973,-15992.07264526,0.00024574,2]
[334475942,1723149038982,-28738.61645582,0.00024662,11]
[334475943,1723149038991,-33679.7624961,0.00024663,3]
[334475944,1723149039001,-151.445866,0.00024663,7]
[334475945,1723149039013,-50419.87020661,0.00024672,11]
[334475946,1723149039022,-5169.85729746,0.00024725,2]